bitfinex/quotes_ETHUSD_20241009
["timestamp","ask_amount","ask_price","bid_price","bid_amount"]
[1728433375006,3.76552888,2441.2,2440.8,4.58915]
[1728433376648,3.76552888,2441.0,2440.7,4.92278]
[1728433376848,3.76552888,2441.0,2440.7,4.09718]
[1728433376849,4.57052888,2441.0,2440.7,4.09718]
[1728433377335,4.57052888,2441.0,2440.6,4.09724]
[1728433377937,4.57052888,2441.0,2440.7,4.09718]
[1728433378341,4.57052888,2441.0,2440.6,4.09724]
[1728433378652,4.57052888,2441.0,2440.6,4.994596]
[1728433378839,4.57052888,2441.0,2440.7,4.09716]
[1728433379078,4.57052888,2441.0,2440.6,4.994596]
[1728433379256,3.76552888,2441.2,2440.7,0.8023]
[1728433379411,0.7853,2441.4,2441.0,4.09653]
[1728433379412,4.55082888,2441.4,2441.0,4.09653]
[1728433380122,3.76552888,2441.2,2441.0,4.09653]
[1728433380322,3.76552888,2441.2,2440.7,0.8023]
[1728433380323,4.22061177,2441.2,2440.7,0.8023]
[1728433380558,4.22061177,2441.2,2440.6,4.09727]
[1728433380559,3.76552888,2441.0,2440.6,4.09727]
[1728433381256,3.76552888,2441.0,2440.6,4.09726]
[1728433381435,3.76552888,2441.0,2440.7,4.09718]
[1728433382158,3.76552888,2441.0,2440.6,4.09726]
[1728433382342,3.76552888,2441.0,2440.7,4.09718]
[1728433383925,3.76552888,2441.0,2440.6,4.09726]
[1728433384165,3.76552888,2441.0,2440.5,0.7893]
[1728433384166,3.76552888,2440.8,2440.4,4.91779]
[1728433384458,3.76552888,2441.0,2440.6,4.09721]
[1728433385333,3.76552888,2440.8,2440.4,4.91779]
[1728433385542,4.55772888,2440.8,2440.4,4.91779]
[1728433385735,4.55772888,2440.8,2440.5,4.09738]
[1728433386266,4.55772888,2440.8,2440.4,0.8202]
[1728433386465,4.56142888,2441.0,2440.6,4.09725]
[1728433388755,3.76552888,2440.8,2440.4,4.09759]
[1728433388984,4.52632888,2440.6,2440.4,4.09759]
[1728433390070,4.52632888,2440.6,2440.4,4.09759]
[1728433390385,3.76552888,2440.8,2440.5,4.09752]
[1728433390551,3.76552888,2440.8,2440.6,4.09727]
[1728433392884,3.76552888,2440.8,2440.5,8.19504]
[1728433393483,3.76552888,2440.8,2440.5,4.09752]
[1728433394675,3.76552888,2440.6,2440.3,4.09774]
[1728433395783,3.76552888,2440.6,2440.1,4.09811]
[1728433395961,3.76552888,2440.6,2440.1,8.19617]
[1728433396644,3.76552888,2440.6,2440.1,4.09806]
[1728433396754,3.76552888,2440.6,2440.2,4.098]
[1728433403388,0.7802,2440.7,2440.4,4.09753]
[1728433403592,0.7802,2440.7,2440.3,4.09785]
[1728433403997,0.7802,2440.7,2440.3,8.19559]
[1728433404194,3.76552888,2440.6,2440.3,8.19559]
[1728433404380,3.76552888,2440.6,2440.4,4.09766]
[1728433404592,11.51678,2441.0,2440.6,4.09725]
[1728433404593,3.8237,2440.9,2440.6,4.09725]
[1728433404774,3.8237,2440.9,2440.7,4.09716]
[1728433405779,3.76552888,2441.0,2440.7,4.09716]
[1728433409119,3.76552888,2441.0,2440.8,4.09699]
[1728433409325,3.76552888,2441.0,2440.8,0.60087078]
[1728433411346,3.76552888,2441.0,2440.5,4.09742]
[1728433411499,3.76552888,2440.8,2440.5,4.09742]
[1728433412342,3.76552888,2440.8,2440.5,8.19484]
[1728433412499,3.76552888,2440.8,2440.6,4.09731]
[1728433414104,4.58022888,2440.8,2440.6,4.09731]
[1728433415247,4.58022888,2440.8,2440.5,4.09742]
[1728433415459,4.58022888,2440.8,2440.7,4.09718]
[1728433415986,4.58022888,2440.8,2440.5,8.680192]
[1728433416954,4.58022888,2440.8,2440.5,4.582772]
[1728433417138,4.58022888,2440.8,2440.6,4.09732]
[1728433417657,4.58022888,2440.8,2440.7,4.09718]
[1728433418059,3.76552888,2440.8,2440.7,4.09718]
[1728433418247,4.58292888,2441.0,2440.7,4.09718]
[1728433420862,3.0,2441.3,2440.9,4.09669]
[1728433421460,3.76552888,2441.2,2440.9,4.09669]
[1728433422022,3.76552888,2441.2,2441.0,4.09665]
[1728433422662,3.0,2441.3,2440.9,4.09669]
[1728433422983,6.76552888,2441.3,2440.9,4.09669]
[1728433423512,6.76552888,2441.3,2440.9,8.19344]
[1728433424171,6.76552888,2441.3,2440.9,4.09669]
[1728433424483,1.74289034,2441.1,2440.9,4.09669]
[1728433424781,1.74289034,2441.1,2440.9,4.995297]
[1728433425645,1.74289034,2441.1,2440.9,9.092037]
[1728433425989,1.74289034,2441.1,2440.9,4.995297]
[1728433426287,1.74289034,2441.4,2441.2,4.09622]
[1728433426450,1.74289034,2441.6,2441.3,0.409622]
[1728433426649,1.74289034,2441.4,2441.2,4.09622]
[1728433427145,1.74289034,2441.4,2441.1,4.09648]
[1728433427488,1.74289034,2441.2,2441.1,5.0869457]
[1728433429352,1.74289034,2441.4,2441.1,5.0869457]
[1728433429681,1.74289034,2441.4,2441.3,4.09612]
[1728433430473,1.74289034,2441.6,2441.3,4.09612]
[1728433430672,1.74289034,2441.6,2441.4,0.7508]
[1728433431990,1.74289034,2441.6,2441.3,4.09606]
[1728433432291,1.74289034,2441.6,2441.3,4.915305]
[1728433433050,0.7686,2441.8,2441.4,4.09593]
[1728433433246,1.74289034,2441.7,2441.5,0.7929]
[1728433433652,7.42,2442.0,2441.5,0.7929]
[1728433433991,1.74289034,2442.0,2441.6,4.09556]
[1728433434223,1.74289034,2442.0,2441.7,0.488846]
[1728433434494,3.77375093,2442.0,2441.7,0.488846]
[1728433435052,3.77375093,2442.0,2441.8,4.09532]
[1728433435373,0.7932,2442.3,2441.8,4.86564]
[1728433435579,4.56695093,2442.3,2441.8,4.86564]
[1728433435904,3.77375093,2442.1,2441.8,0.7704]
[1728433436402,3.77375093,2442.1,2441.8,4.86573]
[1728433438301,3.77375093,2442.1,2441.8,0.7704]
[1728433439170,6.49596809,2442.3,2441.5,0.7695]
[1728433439171,3.77375093,2441.9,2441.5,0.7695]
[1728433439371,3.77375093,2441.7,2441.5,0.7695]
[1728433439568,3.77375093,2441.7,2441.4,4.09593]
[1728433441487,3.77375093,2441.5,2441.2,4.09626]
[1728433441878,3.77375093,2441.5,2441.3,4.09616]
[1728433442182,4.09538,2441.8,2441.3,4.09616]
[1728433442183,3.77375093,2441.7,2441.3,4.09616]
[1728433443489,3.77375093,2441.7,2441.2,4.09626]
[1728433443707,5.04681802,2441.7,2441.2,4.09626]
[1728433444223,5.04681802,2441.7,2441.2,8.19251]
[1728433444524,3.77375093,2441.7,2441.2,8.19251]
[1728433444691,3.77375093,2441.7,2441.2,4.09625]
[1728433446273,3.77375093,2441.7,2441.3,4.09616]
[1728433447346,3.77375093,2441.7,2441.2,4.09625]
[1728433447507,0.7591,2441.6,2441.2,4.09625]
[1728433447833,3.77375093,2441.5,2441.0,4.09655]
[1728433448003,3.77375093,2441.5,2441.2,4.09633]
[1728433449138,3.77375093,2441.5,2441.1,4.0964]
[1728433449858,3.77375093,2441.3,2441.0,4.09655]
[1728433450149,4.95992602,2441.3,2440.8,4.89532]
[1728433450357,4.58255093,2441.3,2440.8,4.89531]
[1728433450863,4.58255093,2441.3,2440.9,4.09683]
[1728433452656,4.58255093,2441.3,2440.8,4.89531]
[1728433453159,3.77375093,2441.1,2440.8,4.89531]
[1728433453454,3.77375093,2441.1,2440.8,8.99223]
[1728433453749,3.77375093,2441.1,2440.8,4.89531]
[1728433453910,3.77375093,2441.1,2440.8,4.09691]
[1728433454116,0.7765,2441.0,2440.8,4.09691]
[1728433454613,1.74321812,2440.9,2440.8,4.09691]
[1728433455652,1.74321812,2440.9,2440.6,4.90858]
[1728433456116,1.74321812,2440.7,2440.4,8.19516]
[1728433456453,1.74321812,2440.7,2440.5,4.09743]
[1728433457423,1.74321812,2440.7,2440.6,4.09735]
[1728433458726,1.74321812,2440.7,2440.4,4.09757]
[1728433458926,0.7765,2441.0,2440.4,4.09753]
[1728433458927,1.74321812,2440.5,2440.4,4.09753]
[1728433461588,1.74321812,2440.7,2440.4,4.09753]
[1728433461885,1.74321812,2440.7,2440.6,4.09735]
[1728433462578,1.74321812,2440.9,2440.6,4.09735]
[1728433462783,8.1955,2441.2,2440.9,4.09675]
[1728433462936,0.7755,2441.2,2440.9,4.09675]
[1728433463131,1.74321812,2441.1,2440.9,8.19349]
[1728433463484,1.74321812,2441.1,2440.9,4.09674]
[1728433463780,1.74321812,2441.3,2441.0,4.09668]
[1728433463988,1.74321812,2441.3,2441.1,4.09645]
[1728433464137,1.74321812,2441.3,2441.0,4.09668]
[1728433464138,1.74321812,2441.3,2441.0,4.09658]
[1728433464912,1.74321812,2441.3,2441.0,8.19316]
[1728433465079,0.7755,2441.5,2441.0,4.09658]
[1728433465279,1.74321812,2441.5,2441.2,4.09622]
[1728433466384,3.77523768,2441.5,2441.2,4.09622]
[1728433466982,3.77523768,2441.5,2441.1,4.09651]
[1728433469192,3.77523768,2441.3,2440.9,4.09674]
[1728433469494,3.77523768,2441.3,2440.9,4.09682]
[1728433469716,3.77523768,2441.3,2440.9,4.09672]
[1728433470116,3.77523768,2441.3,2441.0,4.09658]
[1728433473634,3.77523768,2441.3,2441.1,4.0965]
[1728433473837,3.77523768,2441.5,2441.2,4.09634]
[1728433476550,3.77523768,2441.5,2441.1,4.0965]
[1728433477154,3.77523768,2441.5,2441.1,8.19291]
[1728433478094,3.77523768,2441.5,2441.2,4.09631]
[1728433478298,3.77523768,2441.7,2441.3,4.09608]
[1728433484662,3.77523768,2441.7,2441.2,8.19254]
[1728433485579,3.77523768,2441.7,2441.3,4.09615]
[1728433486383,3.77523768,2441.7,2441.4,4.09598]
[1728433487989,3.77523768,2441.7,2441.5,0.8328]
[1728433488220,3.0,2441.8,2441.5,4.92861]
[1728433488530,1.74199718,2441.7,2441.5,4.92861]
[1728433488939,1.74199718,2441.7,2441.5,0.8328]
[1728433489605,1.74199718,2441.7,2441.4,4.09598]
[1728433490329,1.74199718,2441.7,2441.4,5.04762321]
[1728433496444,1.74199718,2441.7,2441.4,4.09598]
[1728433497951,4.09478,2442.2,2441.6,4.08915]
[1728433498125,1.74199718,2442.0,2441.6,4.08835]
[1728433498509,1.74199718,2442.0,2441.6,4.576645]
[1728433498745,1.74199718,2442.0,2441.6,4.575845]
[1728433498956,1.74199718,2442.0,2441.6,4.569445]
[1728433499511,1.74199718,2442.0,2441.6,4.568645]
[1728433499826,1.74199718,2442.0,2441.6,4.562245]
[1728433500334,1.74199718,2441.8,2441.6,4.560645]
[1728433500536,1.74199718,2441.8,2441.6,4.556645]
[1728433500839,8.9678,2442.2,2441.8,8.96455]
[1728433500840,1.74199718,2442.0,2441.8,8.96455]
[1728433501039,1.74199718,2442.0,2441.8,4.86923]
[1728433501258,1.74199718,2442.0,2441.8,4.86763]
[1728433501475,1.74199718,2442.0,2441.8,4.86363]
[1728433501753,1.74199718,2442.0,2441.8,4.86123]
[1728433502190,1.74199718,2442.0,2441.8,4.85963]
[1728433502339,1.74199718,2442.0,2441.8,0.7644]
[1728433502546,2.49629718,2442.0,2441.6,4.09558]
[1728433502745,1.74199718,2441.8,2441.6,4.09558]
[1728433503584,0.833,2441.7,2441.2,4.09625]
[1728433503795,1.74199718,2441.3,2441.2,4.09625]
[1728433504242,1.74199718,2441.5,2441.2,4.09625]
[1728433504596,1.74199718,2441.7,2441.3,4.09616]
[1728433504886,1.74199718,2441.7,2441.5,4.09582]
[1728433505897,1.74199718,2441.7,2441.4,0.8294]
[1728433506268,3.0,2441.8,2441.3,4.09606]
[1728433506269,1.74199718,2441.5,2441.3,4.09606]
[1728433507070,1.74199718,2441.5,2441.3,8.19213]
[1728433507407,1.74199718,2441.5,2441.3,8.19214]
[1728433508209,1.74199718,2441.5,2441.3,4.09606]
[1728433509692,1.74199718,2441.5,2441.3,8.19214]
[1728433509911,1.74199718,2441.5,2441.4,4.09601]
[1728433510514,1.74199718,2441.5,2441.3,4.09606]
[1728433511506,1.74199718,2441.5,2441.1,4.88471]
[1728433511708,1.74199718,2441.3,2441.1,4.09641]
[1728433511869,1.74199718,2441.3,2440.9,4.88561]
[1728433512069,1.74199718,2441.3,2440.9,8.98235]
[1728433512271,1.74199718,2441.3,2440.9,4.88561]
[1728433512470,1.74199718,2441.3,2440.9,8.98235]
[1728433512777,1.74199718,2441.3,2440.9,4.88561]
[1728433513317,1.74199718,2441.3,2441.0,4.09666]
[1728433514390,1.74199718,2441.3,2440.9,4.88561]
[1728433514628,1.74199718,2441.1,2440.7,4.09707]
[1728433514827,0.8136,2441.2,2440.7,4.09707]
[1728433514828,1.74199718,2440.9,2440.7,4.09707]
[1728433515331,0.8136,2440.8,2440.3,4.92158]
[1728433515543,1.74199718,2440.6,2440.3,4.09778]
[1728433515889,1.74199718,2440.4,2440.3,4.09778]
[1728433516117,1.74199718,2440.6,2440.3,4.09778]
[1728433516323,1.74199718,2440.6,2440.5,4.09752]
[1728433516499,4.59116459,2440.8,2440.5,4.09752]
[1728433516717,0.8136,2440.8,2440.6,4.09724]
[1728433517100,0.8136,2440.8,2440.5,4.09752]
[1728433517303,3.77756459,2440.6,2440.3,4.09779]
[1728433517528,3.77756459,2440.6,2440.1,4.87601]
[1728433517733,3.77756459,2440.6,2440.1,8.9741]
[1728433518028,3.77756459,2440.6,2440.1,4.87599]
[1728433518236,3.77756459,2440.6,2440.3,4.09782]
[1728433518697,9.85712105,2440.8,2440.2,4.09796]
[1728433518898,9.85712105,2440.8,2440.3,4.09773]
[1728433518899,5.75995105,2440.8,2440.3,4.09773]
[1728433519092,4.59116459,2440.8,2440.3,4.09773]
[1728433520733,4.59116459,2440.8,2440.4,4.09758]
[1728433522437,0.8136,2440.8,2440.6,4.09723]
[1728433523815,0.8136,2440.8,2440.4,8.19512]
[1728433524348,0.8136,2440.8,2440.6,4.0973]
[1728433525296,0.8136,2440.8,2440.4,4.917052]
[1728433525493,0.8136,2440.8,2440.4,8.19508]
[1728433525693,7.60646459,2441.0,2440.5,4.09751]
[1728433526799,4.60646459,2441.0,2440.6,4.09734]
[1728433527148,4.60646459,2441.0,2440.7,4.09717]
[1728433527644,4.60646459,2441.0,2440.6,4.09734]
[1728433529145,4.60646459,2441.0,2440.6,8.19441]
[1728433529499,4.60646459,2441.0,2440.7,4.09713]
[1728433530002,4.60646459,2441.0,2440.6,4.09719]
[1728433531916,4.60646459,2441.0,2440.7,0.04769224]
[1728433532113,4.60646459,2441.0,2440.6,4.09719]
[1728433532428,3.77756459,2440.8,2440.6,4.09719]
[1728433532828,3.77756459,2440.8,2440.7,0.04771996]
[1728433533903,4.59236459,2440.8,2440.7,0.04771996]
[1728433534107,5.05160105,2440.8,2440.7,0.04771996]
[1728433534629,5.05160105,2440.8,2440.4,4.09767]
[1728433534829,4.59236459,2440.8,2440.7,0.04771996]
[1728433535145,4.59236459,2440.8,2440.4,4.09767]
[1728433535443,4.59236459,2440.8,2440.2,8.19584]
[1728433535651,4.59236459,2440.8,2440.5,0.04799913]
[1728433535652,8.68949459,2440.8,2440.5,0.04799913]
[1728433535873,8.68949459,2440.8,2440.0,4.85837]
[1728433535874,0.7626,2440.5,2440.0,4.85837]
[1728433536168,0.7626,2440.5,2440.1,4.09818]
[1728433537137,0.7626,2440.5,2440.0,4.85837]
[1728433537462,3.77756459,2440.4,2440.0,4.09827]
[1728433538026,3.77756459,2440.4,2440.1,4.09816]
[1728433538627,0.7626,2440.5,2440.1,4.09816]
[1728433540573,3.77756459,2440.4,2440.0,4.09827]
[1728433540935,3.77756459,2440.4,2440.1,4.09816]
[1728433541372,3.77756459,2440.4,2440.0,4.09827]
[1728433541876,3.77756459,2440.4,2440.0,4.09825]
[1728433543246,3.77756459,2440.4,2440.0,8.19651]
[1728433544146,3.77756459,2440.4,2440.1,4.09806]
[1728433544468,1.74392926,2440.4,2440.1,4.09806]
[1728433546482,1.74392926,2440.4,2440.0,4.09825]
[1728433546779,1.74392926,2440.4,2440.0,8.19651]
[1728433546941,1.74392926,2440.2,2440.0,4.09825]
[1728433547142,2.53772926,2440.2,2440.0,4.09825]
[1728433549727,2.53772926,2440.2,2440.1,4.14675925]
[1728433549967,1.74392926,2440.2,2440.1,4.14675925]
[1728433550174,0.7938,2440.4,2440.3,4.09785]
[1728433550175,1.74392926,2440.4,2440.3,4.09785]
[1728433550338,2.53772926,2440.6,2440.3,4.09785]
[1728433550539,2.53772926,2440.6,2440.3,4.14614048]
[1728433550964,0.7938,2440.6,2440.4,4.09752]
[1728433551290,2.55972926,2441.0,2440.7,4.09718]
[1728433551635,2.55972926,2441.0,2440.8,0.04759252]
[1728433551982,0.2760083,2440.9,2440.8,0.04759252]
[1728433552187,2.55972926,2441.0,2440.8,0.04759252]
[1728433554615,4.59285524,2441.0,2440.8,0.04759252]
[1728433557144,4.59285524,2441.2,2440.9,4.09684]
[1728433557343,3.0,2441.3,2440.9,8.95828]
[1728433557589,6.72609214,2441.4,2440.9,8.95828]
[1728433557890,6.72609214,2441.4,2440.9,4.86144]
[1728433558396,6.72609214,2441.4,2441.0,0.04730175]
[1728433559776,3.77705524,2441.2,2441.0,0.04730175]
[1728433560374,0.8329,2441.1,2441.0,0.04730175]
[1728433560562,0.8329,2441.1,2440.7,4.09705]
[1728433560900,0.8329,2441.1,2440.8,4.14459085]
[1728433561704,0.8329,2441.1,2440.9,4.09674]
[1728433562067,0.8329,2441.1,2441.0,0.04730175]
[1728433562285,3.77705524,2441.2,2441.0,0.04730175]
[1728433564666,4.64558476,2441.2,2441.0,0.04730175]
[1728433564899,0.8122,2441.1,2441.0,0.04730175]
[1728433565066,0.8122,2441.1,2440.6,4.09731]
[1728433565400,3.77705524,2440.9,2440.6,4.09731]
[1728433566899,3.77705524,2440.9,2440.5,4.09741]
[1728433567517,3.77705524,2440.9,2440.6,4.09734]
[1728433568420,3.77705524,2440.9,2440.5,8.19482]
[1728433568717,3.77705524,2440.9,2440.6,4.09734]
[1728433572445,3.77705524,2440.9,2440.5,8.19482]
[1728433572783,3.77705524,2440.9,2440.6,4.09732]
[1728433574245,0.7928,2440.8,2440.6,4.09732]
[1728433574540,2.53612878,2440.8,2440.6,4.09732]
[1728433576934,1.74332878,2440.8,2440.6,4.09732]
[1728433577157,0.8219,2441.0,2440.7,4.09718]
[1728433577158,2.56522878,2441.0,2440.7,4.09718]
[1728433577956,1.74332878,2441.3,2441.0,4.09656]
[1728433578101,1.74332878,2441.3,2441.1,4.09649]
[1728433578718,1.74332878,2441.3,2441.2,0.04701987]
[1728433581204,1.74332878,2441.3,2440.7,4.0971]
[1728433581516,2.57402878,2440.8,2440.6,4.09732]
[1728433583047,1.74332878,2440.8,2440.6,4.09732]
[1728433583428,1.74332878,2441.0,2440.9,4.09684]
[1728433585827,1.74332878,2441.0,2440.7,4.84866]
[1728433585828,1.74332878,2441.0,2440.7,8.9457]
[1728433586034,1.74332878,2441.0,2440.8,4.09701]
[1728433586220,0.8223,2440.9,2440.7,4.09704]
[1728433586417,1.74332878,2440.8,2440.7,4.09704]
[1728433587414,1.74332878,2440.8,2440.6,4.09734]
[1728433589957,1.74332878,2440.8,2440.5,4.0975]
[1728433590157,1.74332878,2440.8,2440.6,4.09733]
[1728433594727,1.74332878,2440.8,2440.7,0.04771588]
[1728433596735,1.74332878,2440.8,2440.5,4.09742]
[1728433596938,1.74332878,2440.8,2440.7,0.04771588]
[1728433597122,1.99989166,2440.8,2440.6,0.04785546]
[1728433597325,1.99989166,2440.8,2440.7,0.04771588]
[1728433597554,1.74332878,2440.8,2440.7,0.04771588]
[1728433597763,1.74332878,2440.8,2440.6,4.09734]
[1728433598064,1.74332878,2440.8,2440.7,0.04771588]
[1728433600567,1.74332878,2440.8,2440.7,4.97039588]
[1728433600751,1.74332878,2441.0,2440.8,4.09699]
[1728433601124,1.74332878,2441.0,2440.9,0.04743675]
[1728433601329,0.7865,2441.2,2440.9,0.04743675]
[1728433601580,0.7865,2441.5,2440.9,0.04743675]
[1728433601751,2.14238325,2441.6,2441.3,4.09617]
[1728433602085,1.74332878,2441.8,2441.4,0.8255]
[1728433602877,1.74332878,2441.8,2441.5,4.09573]
[1728433603035,4.74332878,2441.8,2441.5,4.09573]
[1728433603383,4.74332878,2441.8,2441.6,0.04645812]
[1728433604230,0.7865,2441.9,2441.6,4.14208812]
[1728433604431,10.37899163,2442.3,2441.8,0.7722]
[1728433604678,10.37899163,2442.3,2441.9,4.09507]
[1728433604679,2.56022878,2442.3,2441.9,4.09507]
[1728433604880,2.56022878,2442.3,2441.9,4.14110975]
[1728433604881,1.74332878,2442.3,2441.9,4.14110975]
[1728433605578,12.33083,2442.7,2442.1,4.09481]
[1728433605731,1.74332878,2442.4,2442.1,4.09481]
[1728433605927,4.09436,2442.4,2442.2,0.04561487]
[1728433606131,1.74332878,2442.3,2442.2,0.04561487]
[1728433606350,1.74332878,2442.3,2441.9,4.0951]
[1728433606351,2.32709766,2442.3,2441.9,4.0951]
[1728433606549,4.35673815,2442.3,2441.9,4.0951]
[1728433606755,6.77296927,2442.5,2442.0,4.1407937]
[1728433606952,8.45960516,2442.6,2442.0,4.1407337]
[1728433606953,1.36558516,2442.6,2442.0,4.1407337]
[1728433607235,4.58986927,2442.9,2442.4,4.09432]
[1728433608371,4.58986927,2442.9,2442.5,0.04518985]
[1728433609364,3.77296927,2442.9,2442.5,4.13933985]
[1728433609636,3.77296927,2442.9,2442.5,4.91153985]
[1728433609831,7.58986927,2443.1,2442.5,0.81738985]
[1728433610156,9.12286727,2443.1,2442.5,0.81738985]
[1728433610983,9.12286727,2443.1,2442.6,4.09399]
[1728433611382,9.12286727,2443.1,2442.7,0.04491113]
[1728433611595,7.42,2443.2,2442.7,0.04491113]
[1728433611763,16.44238,2443.6,2442.9,4.87317]
[1728433611764,3.77296927,2443.5,2442.9,4.87317]
[1728433611970,7.42,2443.7,2443.2,4.09286]
[1728433612312,4.59166927,2443.9,2443.4,4.91604]
[1728433612601,3.77296927,2443.9,2443.4,4.91595]
[1728433612911,3.77296927,2443.6,2443.5,0.04378791]
[1728433613268,3.77296927,2443.6,2443.5,0.04376204]
[1728433613586,3.77296927,2443.6,2443.2,0.8234]
[1728433613792,3.77296927,2443.6,2443.5,0.04376204]
[1728433613999,3.77296927,2443.6,2443.2,4.91636]
[1728433614189,3.77296927,2443.6,2443.5,0.04376204]
[1728433614738,3.77296927,2443.6,2443.2,5.817321]
[1728433614883,3.77296927,2443.8,2443.2,5.817241]
[1728433615204,3.77296927,2443.8,2443.3,0.04404057]
[1728433615503,3.77296927,2443.8,2443.3,0.58612816]
[1728433615799,3.77296927,2443.8,2443.3,4.67882816]
[1728433616217,3.77296927,2443.8,2443.4,0.0439013]
[1728433618210,7.86496927,2443.8,2443.4,0.0439013]
[1728433618378,3.77296927,2443.8,2443.4,0.0439013]
[1728433619683,3.77296927,2443.8,2443.4,0.59104221]
[1728433620298,3.77296927,2443.8,2443.4,4.68367221]
[1728433620501,9.0019,2444.1,2443.4,4.68367221]
[1728433620502,3.77296927,2444.0,2443.4,4.68367221]
[1728433620821,3.77296927,2443.8,2443.4,4.63977091]
[1728433621323,3.77296927,2443.8,2443.5,0.04376204]
[1728433621726,3.77296927,2444.0,2443.6,0.7932]
[1728433621933,3.77296927,2444.2,2443.6,4.92897279]
[1728433622085,3.77296927,2444.2,2443.7,4.09214]
[1728433622285,3.77296927,2444.2,2443.8,0.04334433]
[1728433622485,7.86430927,2444.2,2443.6,5.84020189]
[1728433622686,3.77296927,2444.2,2443.7,0.04348356]
[1728433622909,3.77296927,2444.2,2443.8,8.18382]
[1728433623109,3.77296927,2444.2,2443.9,0.7932]
[1728433623322,4.09086,2444.5,2443.9,0.7932]
[1728433623323,7.86397927,2444.4,2443.9,0.7932]
[1728433623539,4.09116,2444.3,2443.9,0.83639238]
[1728433623826,7.86432927,2444.2,2443.9,0.83639238]
[1728433624034,3.77296927,2444.2,2443.9,0.83639238]
[1728433624342,3.77296927,2444.4,2443.9,4.92809238]
[1728433624632,3.77296927,2444.4,2443.9,5.42090162]
[1728433625216,7.86442927,2444.2,2443.9,0.83639238]
[1728433625424,7.86442927,2444.2,2443.9,0.04319238]
[1728433626108,4.09151,2444.1,2443.9,0.04319238]
[1728433626299,3.77296927,2444.0,2443.9,0.04319238]
[1728433626501,12.74312927,2444.2,2443.9,0.04319238]
[1728433626700,3.77296927,2444.0,2443.6,0.8303]
[1728433627093,3.77296927,2444.0,2443.7,0.04346015]
[1728433630623,3.77296927,2443.8,2443.7,0.04346015]
[1728433631002,3.77296927,2443.8,2443.4,4.09265]
[1728433631340,3.77296927,2443.8,2443.4,4.992857]
[1728433631514,3.77296927,2443.8,2443.5,0.04373864]
[1728433633236,3.77296927,2443.8,2443.4,4.09263]
[1728433633557,3.77296927,2443.8,2443.5,0.04373864]
[1728433635050,0.7873,2444.2,2443.5,0.04373864]
[1728433635235,3.77296927,2444.0,2443.6,4.85151]
[1728433635747,3.77296927,2444.0,2443.7,0.04346089]
[1728433636735,4.56026927,2444.2,2443.7,0.04346089]
[1728433637031,11.19296927,2444.3,2443.8,4.09185]
[1728433637296,3.77296927,2444.3,2443.9,0.7765]
[1728433637412,3.77296927,2444.3,2443.9,0.81968245]
[1728433640417,7.86412927,2444.3,2443.9,0.81968245]
[1728433641935,7.86412927,2444.3,2443.9,0.76968245]
[1728433646025,4.09135,2444.2,2443.9,0.76968245]
[1728433646221,3.77296927,2444.1,2443.9,0.04318245]
[1728433646523,7.86445927,2444.1,2443.7,0.8287]
[1728433646924,11.95604927,2444.1,2443.8,0.04331777]
[1728433647156,3.77296927,2443.9,2443.7,0.8287]
[1728433649650,4.09132,2444.2,2443.7,4.9207]
[1728433649868,3.77296927,2444.1,2443.7,4.9207]
[1728433652755,7.86481927,2443.9,2443.4,0.7861]
[1728433654680,7.86481927,2443.9,2443.5,0.04373659]
[1728433656576,7.86481927,2443.9,2443.5,0.04276197]
[1728433656985,3.77296927,2443.9,2443.5,0.04276197]
[1728433658048,7.86451927,2444.1,2443.5,4.13524197]
[1728433658251,4.09167,2444.0,2443.5,4.13524197]
[1728433659494,7.86478927,2443.9,2443.5,0.04276197]
[1728433662782,3.77296927,2443.9,2443.5,0.04276197]
[1728433663579,3.77296927,2443.9,2443.5,4.13517197]
[1728433663783,7.86451927,2444.1,2443.6,4.09222]
[1728433664293,7.86451927,2444.1,2443.7,0.04653108]
[1728433664503,1.73898205,2443.9,2443.7,0.04653108]
[1728433666511,4.73898205,2444.3,2443.8,8.94907]
[1728433666995,4.73898205,2444.3,2443.9,0.04623275]
[1728433668085,9.15898205,2444.5,2444.0,4.9118]
[1728433668288,1.73898205,2444.1,2443.9,0.04623275]
[1728433668607,7.85915326,2444.1,2443.8,0.8203]
[1728433669162,3.76765326,2444.1,2443.8,0.8203]
[1728433669658,3.76765326,2444.1,2443.9,0.04314654]
[1728433670870,7.85914326,2444.1,2443.9,0.04314654]
[1728433671079,9.13145159,2444.1,2443.9,0.04314654]
[1728433671284,9.13145159,2444.1,2443.6,4.8531]
[1728433671485,7.85914326,2444.1,2444.0,0.04300733]
[1728433671670,7.85914326,2444.1,2443.6,4.8531]
[1728433672171,7.85914326,2444.1,2443.7,0.04342498]
[1728433674423,11.95074326,2444.1,2443.7,0.04342498]
[1728433674600,3.76765326,2443.9,2443.7,0.04342498]
[1728433675426,3.76765326,2443.9,2443.8,0.04328673]
[1728433675790,3.76765326,2443.9,2443.5,4.579026]
[1728433675986,3.76765326,2443.9,2443.8,0.04328722]
[1728433676186,3.76765326,2443.9,2443.5,4.09243]
[1728433676418,3.76765326,2443.9,2443.8,0.04328722]
[1728433676622,3.76765326,2443.9,2443.4,4.86593]
[1728433676919,3.76765326,2443.9,2443.8,0.04328722]
[1728433677122,3.76765326,2443.9,2443.4,8.95848]
[1728433677431,3.76765326,2443.9,2443.5,0.04370493]
[1728433680811,4.09149,2444.1,2443.5,0.04370493]
[1728433681015,4.54035326,2444.2,2443.6,4.84252]
[1728433681224,4.54035326,2444.2,2443.6,5.33114249]
[1728433681393,8.63169326,2444.2,2443.7,0.0434311]
[1728433682427,4.54035326,2444.2,2443.7,4.1354311]
[1728433682591,10.42,2444.5,2444.0,4.92263]
[1728433682592,17.44052109,2444.5,2444.0,4.92263]
[1728433682792,19.06277326,2444.5,2444.0,5.414893]
[1728433682991,11.64277326,2444.5,2444.1,0.04287427]
[1728433683194,11.64277326,2444.5,2444.1,4.13431427]
[1728433683195,7.55185326,2444.5,2444.1,4.13431427]
[1728433683446,10.78777435,2444.7,2444.2,4.0913]
[1728433683623,10.78777435,2444.7,2444.4,0.831]
[1728433683624,6.69725435,2444.7,2444.4,0.831]
[1728433683946,11.31604839,2444.9,2444.4,0.831]
[1728433684093,3.76765326,2444.7,2444.5,0.04231516]
[1728433684648,10.97905353,2444.9,2444.5,0.04231516]
[1728433684793,3.76765326,2444.7,2444.5,0.04231516]
[1728433685200,11.94883326,2444.7,2444.1,4.09134]